fUST/lending_fUST_20251119
["ID","MTS","AMOUNT","RATE_DAILY","PERIOD"]
[394412649,1763542241629,-1680.0,0.00016652,2]
[394412650,1763542241638,-500.0,0.00016786,2]
[394412651,1763542241648,-2000.0,0.00016816,2]
[394412652,1763542241657,-2000.0,0.00016816,2]
[394412653,1763542241666,-1843.68948455,0.00016816,2]
[394412654,1763542241675,-514.91139396,0.00016816,2]
[394412655,1763542241684,-162.01282537,0.00016816,2]
[394412656,1763542241695,-2000.0,0.00016816,2]
[394412657,1763542241704,-2000.0,0.00016816,2]
[394412658,1763542241714,-2000.0,0.00016816,2]
[394412659,1763542241723,-1500.0,0.00016827,2]
[394412660,1763542241732,-505.05635559,0.00017021,2]
[394412661,1763542241741,-631.4111994,0.00017021,2]
[394412662,1763542241753,-500.0,0.00017021,2]
[394412663,1763542241763,-1004.58010999,0.00017021,2]
[394412664,1763542241772,-1000.0,0.00017021,2]
[394412665,1763542241786,-1000.0,0.00017021,2]
[394412666,1763542241796,-1000.0,0.00017021,2]
[394412667,1763542241806,-229.41128076,0.00017021,2]
[394412668,1763542241817,-1000.0,0.00017021,2]
[394412669,1763542241828,-1003.44060064,0.00017021,2]
[394412670,1763542241838,-1000.0,0.00017021,2]
[394412671,1763542241848,-1015.5092663,0.00017021,2]
[394412672,1763542241858,-535.99228928,0.00017021,2]
[394412673,1763542241868,-177.0,0.00017053,2]
[394412674,1763542241877,-500.0,0.0001706,2]
[394412675,1763542241887,-1116.54856462,0.00017068,2]
[394412676,1763542241897,-502.36654671,0.00017068,2]
[394412677,1763542241907,-1114.37447076,0.00017168,2]
[394412678,1763542241917,-429.59951479,0.00017168,2]
[394412679,1763542241927,-503.87177589,0.00017168,2]
[394412680,1763542241936,-1500.0,0.00017168,2]
[394412681,1763542241946,-312.0,0.00017204,2]
[394412682,1763542241956,-160.0,0.00017314,2]
[394412683,1763542241966,-500.0,0.00017334,2]
[394412684,1763542241976,-6096.50590769,0.00017345,2]
[394412685,1763542241987,-2500.0,0.00017364,2]
[394412686,1763542241997,-2500.0,0.00017364,2]
[394412687,1763542242008,-2500.0,0.00017364,2]
[394412688,1763542242020,-2500.0,0.00017364,2]
[394412689,1763542242034,-2500.0,0.00017364,2]
[394412690,1763542242044,-380.0,0.00017369,2]
[394412691,1763542242055,-508.93431054,0.00017375,2]
[394412692,1763542242065,-6096.50590769,0.00017466,2]
[394412693,1763542242077,-500.0,0.00017478,2]
[394412694,1763542242087,-517.6516235,0.00017478,2]
[394412695,1763542242097,-162.85610517,0.00017478,2]
[394412696,1763542242107,-500.28151942,0.00017478,2]
[394412697,1763542242118,-500.0,0.00017478,2]
[394412698,1763542242127,-158.67368353,0.00017478,2]
[394412699,1763542242137,-500.0,0.00017478,2]
[394412700,1763542242147,-172.55388676,0.00017478,2]
[394412701,1763542242156,-500.0,0.00017478,2]
[394412702,1763542242166,-500.0,0.00017478,2]
[394412703,1763542242175,-500.0,0.00017478,2]
[394412704,1763542242184,-500.0,0.00017478,2]
[394412705,1763542242194,-500.0,0.00017478,2]
[394412706,1763542242205,-500.0,0.00017478,2]
[394412707,1763542242215,-453.81206981,0.00017478,2]
[394412708,1763542242224,-501.61884464,0.00017478,2]
[394412709,1763542242234,-500.0,0.00017478,2]
[394412710,1763542242244,-500.0,0.00017478,2]
[394412711,1763542242254,-445.69250355,0.00017478,2]
[394412712,1763542242263,-500.0,0.00017478,2]
[394412713,1763542242273,-500.0,0.00017478,2]
[394412714,1763542242284,-501.23064018,0.00017478,2]
[394412715,1763542242293,-505.60972619,0.00017478,2]
[394412716,1763542242308,-471.0,0.00017563,2]
[394412717,1763542242318,-502.99408635,0.00017568,2]
[394412718,1763542242327,-1500.0,0.00017568,2]
[394412719,1763542242338,-1500.0,0.00017568,2]
[394412720,1763542242347,-1040.56070445,0.00017568,2]
[394412721,1763542242357,-1514.93271038,0.00017568,2]
[394412722,1763542242366,-456.93,0.0001757,2]
[394412723,1763542242376,-6096.50590769,0.00017586,2]
[394412724,1763542242386,-241.88472765,0.00017608,2]
[394412725,1763542242396,-6096.50590769,0.00017706,2]
[394412726,1763542242405,-2000.0,0.00017716,2]
[394412727,1763542242414,-6096.50590769,0.00017826,2]
[394412728,1763542242423,-260.0,0.00017862,2]
[394412729,1763542242433,-155.255002,0.00017912,2]
[394412730,1763542242441,-598.41210041,0.00017912,2]
[394412731,1763542242451,-3000.0,0.00017912,2]
[394412732,1763542242460,-3000.0,0.00017912,2]
[394412733,1763542242470,-3000.0,0.00017912,2]
[394412734,1763542242478,-3000.0,0.00017912,2]
[394412735,1763542242487,-6096.50590769,0.00017947,2]
[394412736,1763542242497,-1000.0,0.00018026,2]
[394412737,1763542242506,-373.07139652,0.00018026,2]
[394412738,1763542242516,-1000.0,0.00018026,2]
[394412739,1763542242525,-1000.0,0.00018026,2]
[394412740,1763542242537,-1000.0,0.00018026,2]
[394412741,1763542242545,-836.46863116,0.00018026,2]
[394412742,1763542242555,-811.0902021,0.00018026,2]
[394412743,1763542242565,-424.07590189,0.00018026,2]
[394412744,1763542242574,-507.23390965,0.00018026,2]
[394412745,1763542242583,-458.60908153,0.00018026,2]
[394412746,1763542242592,-1000.0,0.00018026,2]
[394412748,1763542242601,-1000.0,0.00018026,2]
[394412749,1763542242610,-693.56543964,0.00018026,2]
[394412750,1763542242620,-6096.50590769,0.00018067,2]
[394412751,1763542242629,-587.0,0.0001813,2]
[394412752,1763542242638,-1920.0,0.00018131,2]
[394412753,1763542242647,-6096.50590769,0.00018187,2]
[394412754,1763542242657,-1494.88981819,0.00018264,2]
[394412755,1763542242666,-6096.50590769,0.00018307,2]
[394412756,1763542242675,-2351.0,0.00018314,2]
[394412757,1763542242684,-360.0,0.0001841,2]
[394412758,1763542242693,-6102.6024136,0.00018428,2]
[394412759,1763542242702,-3500.0,0.0001846,2]
[394412760,1763542242711,-3500.0,0.0001846,2]
[394412761,1763542242720,-1577.16532933,0.0001846,2]
[394412762,1763542242729,-3500.0,0.0001846,2]
[394412763,1763542242739,-239.491418,0.00018489,2]
[394412764,1763542242749,-1007.28708574,0.00018574,2]
[394412765,1763542242758,-1500.0,0.00018574,2]
[394412766,1763542242768,-1057.60843727,0.00018574,2]
[394412767,1763542242781,-1500.0,0.00018574,2]
[394412768,1763542242791,-1500.0,0.00018574,2]
[394412769,1763542242801,-1500.0,0.00018574,2]
[394412770,1763542242812,-151.0,0.00018676,2]
[394412771,1763542242822,-151.0,0.00018676,2]
[394412772,1763542242832,-151.0,0.00018676,2]
[394412773,1763542242842,-275.283086,0.00018676,2]
[394412774,1763542242852,-460.0,0.00018957,2]
[394412775,1763542242861,-3000.0,0.00019008,2]
[394412776,1763542242871,-2000.0,0.00019008,2]
[394412777,1763542242880,-2013.64025914,0.00019008,2]
[394412778,1763542242890,-204.0,0.00019053,2]
[394412779,1763542242900,-2000.0,0.00019122,2]
[394412780,1763542242910,-2000.0,0.00019122,2]
[394412781,1763542242919,-1987.99960205,0.00019122,2]
[394412782,1763542242929,-944.92975414,0.00019122,2]
[394412783,1763542242939,-229.279246,0.00019178,2]
[394412784,1763542242948,-229.279246,0.00019178,2]
[394412785,1763542242958,-229.279246,0.00019178,2]
[394412786,1763542242968,-229.279246,0.00019178,2]
[394412787,1763542242977,-153.84547182,0.00019178,2]
[394412788,1763542242987,-560.0,0.00019505,2]
[394412789,1763542242997,-2246.14522943,0.0001967,2]
[394412790,1763542243009,-2500.0,0.0001967,2]
[394412791,1763542243019,-151.0,0.00019717,7]
[394412793,1763542243030,-823.0,0.00019839,2]
[394412795,1763542243040,-377.89329795,0.00019973,2]
[394412797,1763542243050,-768.81066452,0.00020053,2]
[394412799,1763542243059,-1116.0,0.00020143,2]
[394412801,1763542243069,-2953.10479054,0.00020218,2]
[394412803,1763542243078,-273.85591211,0.00020642,2]
[394412805,1763542243088,-154.27544752,0.00020723,3]
[394412806,1763542243097,-617.10179009,0.00020723,3]
[394412808,1763542243107,-256.63817292,0.00020723,3]
[394412810,1763542243117,-1026.55269166,0.00020723,3]
[394412812,1763542243127,-618.79432604,0.00021023,2]
[394412814,1763542243136,-231.0,0.00021053,2]
[394412816,1763542243145,-2891.50583401,0.00021134,2]
[394412818,1763542243155,-500.0,0.00021363,2]
[394412820,1763542243164,-151.0,0.000214,3]
[394412821,1763542243173,-500.0,0.00021659,2]
[394412822,1763542243182,-500.0,0.00021659,2]
[394412823,1763542243192,-503.70002224,0.00021659,2]
[394412824,1763542243201,-1152.0,0.0002171,2]
[394412825,1763542243210,-500.0,0.000218,2]
[394412826,1763542243220,-500.0,0.00021917,2]
[394412827,1763542243229,-260.616892,0.00021918,2]
[394412828,1763542243238,-260.616892,0.00021918,2]
[394412829,1763542243249,-260.616892,0.00021918,2]
[394412830,1763542243260,-260.616892,0.00021918,2]
[394412831,1763542243352,-151.0,0.00021918,7]
[394412832,1763542243361,-2944.614145,0.00021979,2]
[394412833,1763542243371,-208.380031,0.00021979,2]
[394412834,1763542243383,-277.8400417,0.00021979,2]
[394412835,1763542243391,-3000.5708297,0.00021979,2]
[394412836,1763542243400,-500.0,0.00022033,2]
[394412837,1763542243409,-500.0,0.00022033,2]
[394412838,1763542243419,-500.0,0.00022033,2]
[394412839,1763542243428,-400.87691731,0.00022094,2]
[394412840,1763542243437,-160.0,0.00022094,2]
[394412841,1763542243447,-151.0,0.000221,10]
[394412842,1763542243456,-151.0,0.000221,10]
[394412843,1763542243465,-500.0,0.00022156,2]
[394412844,1763542243474,-4885.13,0.000222,2]
[394412845,1763542243483,-705.28,0.000222,14]
[394412846,1763542243492,-162.6,0.000222,7]
[394412847,1763542243502,-1002.68621881,0.00022207,2]
[394412848,1763542243511,-501.01226821,0.00022207,2]
[394412849,1763542243520,-151.0,0.000224,7]
[394412850,1763542243531,-183.731,0.00022468,2]
[394412851,1763542243540,-232.411,0.00022468,2]
[394412852,1763542243550,-600.0,0.00022542,20]
[394412853,1763542243560,-151.0,0.00022542,7]
[394412854,1763542243568,-1000.0,0.00022581,2]
[394412855,1763542243578,-1000.0,0.00022581,2]
[394412856,1763542243587,-1000.0,0.00022581,2]
[394412857,1763542243596,-151.0,0.000227,9]
[394412858,1763542243605,-183.10083734,0.00022704,2]
[394412859,1763542243615,-547.70334644,0.000228,2]
[394412860,1763542243624,-151.0,0.000228,6]
[394412861,1763542243633,-151.0,0.000229,9]
[394412862,1763542243643,-151.000082,0.0002299,7]
[394412863,1763542243652,-500.0,0.00023013,2]
[394412864,1763542243661,-258.0,0.00023053,2]
[394412865,1763542243670,-151.0,0.00023129,7]
[394412866,1763542243680,-151.0,0.00023129,7]
[394412867,1763542243690,-151.0,0.00023129,7]
[394412868,1763542243699,-610.10221103,0.00023129,2]
[394412869,1763542243708,-1500.0,0.00023129,2]
[394412870,1763542243717,-1500.0,0.00023129,2]
[394412871,1763542243727,-151.0,0.000232,8]
[394412872,1763542243737,-263.7431718,0.00023414,2]
[394412873,1763542243746,-151.0,0.000235,10]
[394412874,1763542243756,-151.0,0.000235,7]
[394412875,1763542243765,-1987.15738357,0.00023677,2]
[394412876,1763542243774,-1735.96333372,0.00023677,2]
[394412877,1763542243788,-1325.0,0.00023757,2]
[394412878,1763542243798,-166.8028097,0.00023777,2]
[394412879,1763542243807,-151.0,0.000238,8]
[394412880,1763542243817,-1004.0,0.00024075,2]
[394412881,1763542243826,-151.0,0.000241,9]
[394412882,1763542243835,-500.0,0.00024109,2]
[394412883,1763542243844,-31036.98825955,0.00024142,2]
[394412884,1763542243853,-151.0,0.00024142,7]
[394412885,1763542243862,-260.616892,0.00024142,2]
[394412886,1763542243872,-260.616892,0.00024142,2]
[394412887,1763542243881,-260.616892,0.00024142,2]
[394412888,1763542243891,-260.616892,0.00024142,2]
[394412889,1763542243900,-151.0,0.00024142,7]
[394412890,1763542243909,-229.279246,0.00024142,7]
[394412891,1763542243918,-229.279246,0.00024142,7]
[394412892,1763542243927,-229.279246,0.00024142,7]
[394412893,1763542243937,-229.279246,0.00024142,7]
[394412894,1763542243946,-1004.0,0.00024163,2]
[394412895,1763542243955,-150.0,0.00024173,2]
[394412896,1763542243965,-151.0,0.000243,6]
[394412897,1763542243974,-151.0,0.000243,8]
[394412898,1763542243984,-151.0,0.000246,6]
[394412899,1763542243994,-455.07841076,0.00024616,2]
[394412900,1763542244003,-170.72375185,0.00024616,2]
[394412901,1763542244013,-682.8950074,0.00024616,2]
[394412902,1763542244022,-1536.51376665,0.00024616,2]
[394412903,1763542244032,-2728.84844957,0.00024616,2]
[394412904,1763542244042,-335.8581426,0.00024616,2]
[394412905,1763542244051,-585.42022497,0.00024616,2]
[394412906,1763542244061,-205.46458563,0.00024616,2]
[394412907,1763542244070,-821.85834252,0.00024616,2]
[394412908,1763542244079,-1847.33208941,0.00024616,2]
[394412909,1763542244089,-681.62235608,0.00024643,2]
[394412910,1763542244098,-194.77004195,0.00024643,2]
[394412911,1763542244107,-779.08016778,0.00024643,2]
[394412912,1763542244117,-151.0,0.00024652,7]
[394412913,1763542244126,-150.0,0.00024658,2]
[394412914,1763542244136,-200.0,0.00024658,2]
[394412915,1763542244144,-151.0,0.00024658,7]
[394412916,1763542244153,-151.0,0.00024658,7]
[394412917,1763542244164,-151.0,0.00024658,7]
[394412918,1763542244173,-151.0,0.00024658,7]
[394412919,1763542244183,-151.0,0.00024658,7]
[394412920,1763542244192,-151.0,0.00024658,7]
[394412921,1763542244200,-151.0,0.00024658,7]
[394412922,1763542244209,-151.0,0.00024658,7]
[394412923,1763542244219,-151.0,0.00024658,7]
[394412924,1763542244227,-151.0,0.00024658,7]
[394412925,1763542244236,-151.0,0.00024658,7]
[394412926,1763542244245,-151.0,0.00024658,7]
[394412927,1763542244254,-151.0,0.00024658,7]
[394412928,1763542244263,-151.0,0.00024658,7]
[394412929,1763542244271,-151.0,0.00024658,7]
[394412930,1763542244282,-151.0,0.00024658,7]
[394412931,1763542244291,-151.0,0.00024658,7]
[394412932,1763542244300,-151.0,0.00024658,7]
[394412933,1763542244314,-151.0,0.00024658,7]
[394412934,1763542244324,-151.0,0.00024658,7]
[394412935,1763542244332,-151.0,0.00024658,7]
[394412936,1763542244342,-151.0,0.00024658,7]
[394412937,1763542244351,-151.0,0.00024658,7]
[394412938,1763542244360,-151.0,0.00024658,7]
[394412939,1763542244369,-151.0,0.00024658,7]
[394412940,1763542244379,-151.0,0.00024658,7]
[394412941,1763542244390,-151.0,0.00024658,7]
[394412942,1763542244402,-151.0,0.00024658,7]
[394412943,1763542244414,-151.0,0.00024658,7]
[394412944,1763542244427,-151.0,0.00024658,7]
[394412945,1763542244439,-151.0,0.00024658,7]
[394412946,1763542244449,-151.0,0.00024658,7]
[394412947,1763542244459,-151.0,0.00024658,7]
[394412948,1763542244471,-151.0,0.00024658,7]
[394412949,1763542244483,-151.0,0.00024658,7]
[394412950,1763542244495,-151.0,0.00024658,7]
[394412951,1763542244507,-151.0,0.00024658,7]
[394412952,1763542244519,-210.918084,0.00024658,7]
[394412953,1763542244533,-210.918084,0.00024658,7]
[394412954,1763542244544,-210.918084,0.00024658,7]
[394412955,1763542244555,-210.918084,0.00024658,7]
[394412956,1763542244567,-210.918084,0.00024658,7]
[394412957,1763542244578,-210.918084,0.00024658,7]
[394412958,1763542244590,-210.918084,0.00024658,7]
[394412959,1763542244601,-151.0,0.00024658,7]
[394412960,1763542244612,-151.0,0.00024658,7]
[394412961,1763542244624,-210.918084,0.00024658,7]
[394412962,1763542244636,-151.0,0.00024658,7]
[394412963,1763542244647,-151.0,0.00024658,7]
[394412964,1763542244658,-151.0,0.00024658,7]
[394412965,1763542244670,-151.0,0.00024658,7]
[394412966,1763542244681,-151.0,0.00024658,7]
[394412967,1763542244692,-151.0,0.00024658,7]
[394412968,1763542244703,-151.0,0.00024658,7]
[394412969,1763542244714,-151.0,0.00024658,7]
[394412970,1763542244724,-151.0,0.00024658,7]
[394412971,1763542244734,-243.268731,0.00024658,7]
[394412972,1763542244745,-151.0,0.00024658,7]
[394412973,1763542244755,-151.0,0.00024658,7]
[394412974,1763542244766,-151.0,0.00024658,7]
[394412975,1763542244779,-151.894799,0.00024658,7]
[394412976,1763542244791,-151.0,0.00024658,7]
[394412977,1763542244802,-151.0,0.00024658,7]
[394412978,1763542244813,-171.445903,0.00024658,7]
[394412979,1763542244826,-171.445903,0.00024658,7]
[394412980,1763542244837,-171.445903,0.00024658,7]
[394412981,1763542244849,-171.445903,0.00024658,7]
[394412982,1763542244860,-171.445903,0.00024658,7]
[394412983,1763542244873,-171.445903,0.00024658,7]
[394412984,1763542244883,-171.445903,0.00024658,7]
[394412985,1763542244893,-171.445903,0.00024658,7]
[394412986,1763542244903,-151.0,0.00024658,7]
[394412987,1763542244913,-151.0,0.00024658,7]
[394412988,1763542244924,-151.0,0.00024658,7]
[394412989,1763542244936,-151.0,0.00024658,7]
[394412990,1763542244949,-151.0,0.00024658,7]
[394412991,1763542244962,-151.0,0.00024658,7]
[394412992,1763542244973,-151.0,0.00024658,7]
[394412993,1763542244984,-151.0,0.00024658,7]
[394412994,1763542244994,-151.0,0.00024658,7]
[394412995,1763542245005,-151.0,0.00024658,7]
[394412996,1763542245015,-151.0,0.00024658,7]
[394412997,1763542245027,-151.0,0.00024658,7]
[394412998,1763542245039,-151.0,0.00024658,7]
[394412999,1763542245049,-151.0,0.00024658,7]
[394413000,1763542245060,-151.0,0.00024658,7]
[394413001,1763542245070,-151.0,0.00024658,7]
[394413002,1763542245080,-151.0,0.00024658,7]
[394413003,1763542245091,-151.0,0.00024658,7]
[394413004,1763542245101,-151.0,0.00024658,7]
[394413005,1763542245113,-151.0,0.00024658,7]
[394413006,1763542245123,-151.0,0.00024658,7]
[394413007,1763542245134,-151.0,0.00024658,7]
[394413008,1763542245144,-151.0,0.00024658,7]
[394413009,1763542245155,-220.171576,0.00024658,7]
[394413010,1763542245165,-151.0,0.00024658,7]
[394413011,1763542245176,-151.0,0.00024658,7]
[394413012,1763542245187,-151.0,0.00024658,7]
[394413013,1763542245197,-151.0,0.00024658,7]
[394413014,1763542245208,-151.0,0.00024658,7]
[394413015,1763542245219,-151.0,0.00024658,7]
[394413016,1763542245229,-224.775142,0.00024658,7]
[394413017,1763542245240,-225.683307,0.00024658,7]
[394413018,1763542245250,-151.0,0.00024658,7]
[394413019,1763542245261,-151.0,0.00024658,7]
[394413020,1763542245272,-151.0,0.00024658,7]
[394413021,1763542245284,-151.0,0.00024658,7]
[394413022,1763542245295,-151.0,0.00024658,7]
[394413023,1763542245309,-173.274677,0.00024658,7]
[394413024,1763542245320,-151.0,0.00024658,7]
[394413025,1763542245330,-151.0,0.00024658,7]
[394413026,1763542245342,-162.753913,0.00024658,7]
[394413027,1763542245353,-236.35806,0.00024658,7]
[394413028,1763542245363,-500.0,0.00024658,2]
[394413029,1763542245373,-1004.0,0.00024662,2]
[394413030,1763542245384,-500.0,0.00024685,2]
[394413031,1763542245395,-500.0,0.00024713,2]
[394413032,1763542245407,-300.0,0.00024721,2]
[394413033,1763542245417,-500.0,0.0002474,2]
[394413034,1763542245429,-500.0,0.00024768,2]
[394413035,1763542245440,-500.0,0.00024795,2]
[394413036,1763542245450,-720.0,0.00024796,20]
[394413037,1763542245461,-5107.13979692,0.000248,2]
[394413038,1763542245471,-151.0,0.000248,7]
[394413039,1763542245482,-151.0,0.000248,7]
[394413040,1763542245492,-229.0541,0.000248,7]
[394413041,1763542245503,-260.616892,0.000248,2]
[394413042,1763542245513,-260.616892,0.000248,2]
[394413043,1763542245524,-260.616892,0.000248,2]
[394413044,1763542245534,-260.616892,0.000248,2]
[394413045,1763542245544,-151.0,0.000248,7]
[394413046,1763542245554,-64470.0626665,0.000248,2]
[394413047,1763542245564,-151.0,0.000248,7]
[394413048,1763542245575,-151.0,0.000248,7]
[394413050,1763542245688,-427.81083827,0.00024822,2]
[394413051,1763542245702,-1004.0,0.00024861,2]
[394413052,1763542245711,-151.0,0.0002489,7]
[394413053,1763542245720,-3000.5708297,0.00024891,2]
[394413054,1763542245729,-151.0,0.000249,7]
[394413055,1763542245738,-151.0,0.000249,7]
[394413056,1763542245746,-151.0,0.000249,7]
[394413057,1763542245755,-154.811422,0.000249,7]
[394413058,1763542245765,-151.0,0.000249,7]
[394413059,1763542245773,-151.0,0.000249,7]
[394413060,1763542245783,-151.0,0.000249,7]
[394413061,1763542245791,-151.0,0.000249,7]
[394413062,1763542245801,-151.0,0.000249,7]
[394413063,1763542245810,-151.0,0.000249,7]
[394413064,1763542245819,-151.0,0.000249,7]
[394413065,1763542245828,-151.0,0.000249,7]
[394413066,1763542245836,-151.0,0.000249,7]
[394413067,1763542245845,-151.0,0.000249,7]
[394413068,1763542245854,-151.0,0.000249,7]
[394413069,1763542245863,-151.0,0.000249,7]
[394413070,1763542245872,-151.0,0.000249,7]
[394413071,1763542245881,-151.0,0.000249,7]
[394413072,1763542245890,-151.0,0.000249,7]
[394413073,1763542245899,-151.0,0.000249,7]
[394413074,1763542245908,-151.0,0.000249,7]
[394413075,1763542245917,-151.0,0.000249,7]
[394413076,1763542245926,-151.0,0.000249,7]
[394413077,1763542245936,-210.918084,0.000249,7]
[394413078,1763542245945,-210.918084,0.000249,7]
[394413079,1763542245954,-210.918084,0.000249,7]
[394413080,1763542245963,-210.918084,0.000249,7]
[394413081,1763542245972,-151.0,0.000249,7]
[394413082,1763542245981,-151.0,0.000249,7]
[394413083,1763542245991,-151.0,0.000249,7]
[394413084,1763542245999,-151.0,0.000249,7]
[394413085,1763542246009,-235.743736,0.000249,7]
[394413086,1763542246018,-151.0,0.000249,7]
[394413087,1763542246027,-151.0,0.000249,3]
[394413088,1763542246037,-151.0,0.000249,3]
[394413089,1763542246046,-151.0,0.000249,3]
[394413090,1763542246056,-151.0,0.000249,3]
[394413091,1763542246065,-159.28056,0.000249,3]
[394413092,1763542246074,-158.12604,0.000249,7]
[394413093,1763542246083,-171.445903,0.000249,7]
[394413094,1763542246092,-171.445903,0.000249,7]
[394413095,1763542246101,-171.445903,0.000249,7]
[394413096,1763542246110,-171.445903,0.000249,7]
[394413097,1763542246119,-151.0,0.000249,7]
[394413098,1763542246128,-177.99237048,0.000249,7]
[394413099,1763542246137,-151.0,0.000249,7]
[394413100,1763542246146,-61435.94490933,0.000249,2]
[394413101,1763542246278,-2133.32744443,0.00021505,2]
[394413102,1763542246287,-2891.50583401,0.00021583,2]
[394413103,1763542246296,-2891.50583403,0.00021727,2]
[394413104,1763542246306,-2133.32744444,0.0002174,2]
[394413105,1763542246316,-170.40558902,0.00024616,2]
[394413106,1763542246325,-17229.92785405,0.000249,2]
[394413107,1763542246489,-269.23378899,0.0002489,10]
[394413115,1763543132360,542.73626,0.00013699,2]
[394413122,1763543331842,150.0,0.000161,3]
[394413162,1763543432495,-300.0,0.00015131,2]
[394413164,1763543432505,-1089.63512518,0.00015131,2]
[394413247,1763543438278,-110.36487482,0.00015131,2]
[394413248,1763543438288,-500.0,0.00015132,2]
[394413249,1763543438298,-162.43544907,0.00015132,2]
[394413250,1763543438308,-346.56589205,0.00015132,2]
[394413251,1763543438318,-500.0,0.00015132,2]
[394413252,1763543438327,-500.0,0.00015132,2]
[394413253,1763543438337,-500.0,0.00015132,2]
[394413254,1763543438347,-941.04658545,0.00015132,2]
[394413255,1763543438357,-500.0,0.00015132,2]
[394413256,1763543438366,-500.0,0.00015132,2]
[394413257,1763543438375,-500.0,0.00015132,2]
[394413258,1763543438384,-941.04658545,0.00015132,2]
[394413259,1763543438394,-500.0,0.00015132,2]
[394413260,1763543438403,-500.0,0.00015132,2]
[394413261,1763543438413,-500.0,0.00015132,2]
[394413262,1763543438422,-500.0,0.00015132,2]
[394413263,1763543438431,-500.0,0.00015132,2]
[394413264,1763543438440,-941.04658545,0.00015132,2]
[394413265,1763543438449,-500.0,0.00015132,2]
[394413266,1763543438459,-941.04658545,0.00015132,2]
[394413267,1763543438468,-500.0,0.00015132,2]
[394413268,1763543438477,-500.0,0.00015132,2]
[394413269,1763543438487,-500.0,0.00015132,2]
[394413270,1763543438496,-500.0,0.00015132,2]
[394413271,1763543438506,-941.04658545,0.00015132,2]
[394413272,1763543438515,-500.0,0.00015132,2]
[394413273,1763543438524,-500.0,0.00015132,2]
[394413274,1763543438535,-500.0,0.00015132,2]
[394413275,1763543438546,-395.7381705,0.00015132,2]
[394413276,1763543438555,-941.04658545,0.00015132,2]
[394413277,1763543438565,-500.0,0.00015132,2]
[394413278,1763543438574,-500.0,0.00015132,2]
[394413279,1763543438583,-941.04658545,0.00015132,2]
[394413280,1763543438593,-500.0,0.00015132,2]
[394413281,1763543438602,-500.0,0.00015132,2]
[394413282,1763543438611,-500.0,0.00015132,2]
[394413283,1763543438620,-941.04658545,0.00015132,2]
[394413284,1763543438630,-500.0,0.00015132,2]
[394413285,1763543438639,-500.0,0.00015132,2]
[394413286,1763543438648,-500.0,0.00015132,2]
[394413287,1763543438657,-941.04658545,0.00015132,2]
[394413288,1763543438666,-500.0,0.00015132,2]
[394413289,1763543438679,-312.64163411,0.00015132,2]
[394413290,1763543438688,-500.0,0.00015132,2]
[394413291,1763543438697,-500.0,0.00015132,2]
[394413292,1763543438708,-941.04658545,0.00015132,2]
[394413293,1763543438718,-500.0,0.00015132,2]
[394413294,1763543438728,-500.0,0.00015132,2]
[394413295,1763543438738,-500.0,0.00015132,2]
[394413296,1763543438747,-941.04658545,0.00015132,2]
[394413297,1763543438759,-500.0,0.00015132,2]
[394413298,1763543438769,-500.0,0.00015132,2]
[394413299,1763543438780,-643.89831195,0.00015132,2]